fUSD/lending_fUSD_20260217
["ID","MTS","AMOUNT","RATE_DAILY","PERIOD"]
[405840941,1771353044272,-6034.81891893,0.00011,2]
[405840942,1771353044282,-1600.0,0.00011036,2]
[405840943,1771353044291,-583.69347785,0.00011095,2]
[405840944,1771353044300,-200.0,0.00011096,2]
[405840945,1771353044310,-200.0,0.00011096,2]
[405840946,1771353044319,-500.0,0.00011096,2]
[405840947,1771353044330,-41446.46724247,0.00011099,2]
[405840948,1771353044339,-41446.46724243,0.00011099,2]
[405840949,1771353044348,-41446.46724243,0.00011099,2]
[405840950,1771353044357,-41446.46724243,0.00011099,2]
[405840951,1771353044367,-41446.46724243,0.00011099,2]
[405840952,1771353044379,-41446.46724243,0.00011099,2]
[405840953,1771353044388,-76805.89310861,0.00011099,2]
[405840954,1771353044402,-76805.89310854,0.00011099,2]
[405840955,1771353044411,-76805.89310854,0.00011099,2]
[405840956,1771353044422,-76805.89310854,0.00011099,2]
[405840957,1771353044431,-76805.89310854,0.00011099,2]
[405840958,1771353044440,-76805.89310854,0.00011099,2]
[405840959,1771353044451,-12405.38,0.00011233,2]
[405840960,1771353044460,-500.0,0.00011233,2]
[405840961,1771353044469,-41446.46724243,0.0001138,2]
[405840962,1771353044479,-214297.0,0.000114,2]
[405840963,1771353044487,-339.62,0.00011416,2]
[405840964,1771353044497,-4488.74151012,0.0001144,2]
[405840965,1771353044506,-76805.89310854,0.00011447,2]
[405840966,1771353044516,-2406.5,0.00011507,2]
[405840967,1771353044525,-500.0,0.00011507,2]
[405840968,1771353044534,-218.04759767,0.00011644,2]
[405840969,1771353044544,-200.0,0.00011644,2]
[405840970,1771353044553,-500.0,0.00011644,2]
[405840971,1771353044562,-9035.0,0.00011687,2]
[405840972,1771353044573,-2258.0,0.00011687,2]
[405840973,1771353044582,-3620.0,0.0001169,2]
[405840974,1771353044595,-5384.473729,0.00011718,2]
[405840975,1771353044605,-500.0,0.00011781,2]
[405840976,1771353044614,-840.90433578,0.00011797,2]
[405840977,1771353044623,-5530.0,0.000118,3]
[405840978,1771353044633,-339.62,0.00011872,2]
[405840979,1771353044642,-23006.18,0.00012055,2]
[405840980,1771353044651,-500.0,0.00012055,2]
[405840981,1771353044660,-1600.0,0.00012139,2]
[405840982,1771353044670,-600.0,0.00012166,2]
[405840983,1771353044679,-164.61380668,0.00012173,2]
[405840984,1771353044689,-500.0,0.00012173,2]
[405840985,1771353044698,-500.0,0.00012173,2]
[405840986,1771353044708,-500.0,0.00012173,2]
[405840987,1771353044717,-500.0,0.00012173,2]
[405840988,1771353044727,-500.0,0.00012173,2]
[405840989,1771353044736,-500.0,0.00012173,2]
[405840990,1771353044746,-500.0,0.00012173,2]
[405840991,1771353044756,-500.0,0.00012173,2]
[405840992,1771353044765,-545.77855618,0.00012173,2]
[405840993,1771353044775,-160.1837527,0.00012173,2]
[405840994,1771353044788,-500.0,0.00012173,2]
[405840995,1771353044798,-500.0,0.00012173,2]
[405840996,1771353044807,-500.0,0.00012173,2]
[405840997,1771353044817,-500.0,0.00012173,2]
[405840998,1771353044827,-500.0,0.00012173,2]
[405840999,1771353044837,-500.0,0.00012173,2]
[405841000,1771353044847,-500.0,0.00012173,2]
[405841001,1771353044857,-500.0,0.00012173,2]
[405841002,1771353044866,-160.37289206,0.00012173,2]
[405841003,1771353044875,-500.0,0.00012173,2]
[405841004,1771353044885,-500.0,0.00012173,2]
[405841005,1771353044894,-500.0,0.00012173,2]
[405841006,1771353044903,-500.62727143,0.00012173,2]
[405841007,1771353044912,-500.0,0.00012173,2]
[405841008,1771353044921,-500.46642231,0.00012173,2]
[405841009,1771353044930,-500.0,0.00012173,2]
[405841010,1771353044939,-500.0,0.00012173,2]
[405841011,1771353044949,-239.8459294,0.00012173,2]
[405841012,1771353044958,-218.33608313,0.00012173,2]
[405841013,1771353044968,-500.0,0.00012173,2]
[405841014,1771353044980,-500.0,0.00012173,2]
[405841015,1771353044990,-500.0,0.00012173,2]
[405841016,1771353045000,-500.0,0.00012173,2]
[405841017,1771353045009,-500.0,0.00012173,2]
[405841018,1771353045019,-41446.46724243,0.00012178,2]
[405841019,1771353045028,-200.0,0.00012192,2]
[405841020,1771353045037,-500.0,0.00012192,2]
[405841021,1771353045047,-5530.0,0.000122,5]
[405841022,1771353045056,-1560.41290538,0.00012248,2]
[405841023,1771353045066,-5209.65985741,0.00012248,2]
[405841024,1771353045076,-500.0,0.00012329,2]
[405841025,1771353045085,-339.62,0.00012329,2]
[405841026,1771353045096,-1000.0,0.00012348,2]
[405841027,1771353045106,-308.39558699,0.000125,2]
[405841028,1771353045116,-500.0,0.00012603,2]
[405841029,1771353045126,-1000.0,0.00012721,2]
[405841030,1771353045135,-571.65229745,0.00012721,2]
[405841031,1771353045146,-1002.81524174,0.00012721,2]
[405841032,1771353045156,-228.57891647,0.00012721,2]
[405841033,1771353045167,-544.40507509,0.00012721,2]
[405841034,1771353045177,-509.22256369,0.00012721,2]
[405841035,1771353045186,-500.0,0.00012721,2]
[405841036,1771353045197,-1000.0,0.00012721,2]
[405841037,1771353045206,-1000.0,0.00012721,2]
[405841038,1771353045216,-1000.0,0.00012721,2]
[405841039,1771353045227,-1000.0,0.00012721,2]
[405841040,1771353045236,-1000.0,0.00012721,2]
[405841041,1771353045245,-1013.94571317,0.00012721,2]
[405841042,1771353045255,-1000.0,0.00012721,2]
[405841043,1771353045264,-1000.0,0.00012721,2]
[405841044,1771353045273,-1000.0,0.00012721,2]
[405841045,1771353045283,-615.3930462,0.00012721,2]
[405841046,1771353045292,-306.10762696,0.00012721,2]
[405841047,1771353045301,-1000.0,0.00012721,2]
[405841048,1771353045311,-1000.0,0.00012721,2]
[405841049,1771353045320,-1071.24633497,0.00012721,2]
[405841050,1771353045330,-1000.0,0.00012721,2]
[405841051,1771353045339,-928.11420057,0.00012721,2]
[405841052,1771353045348,-501.82748142,0.00012721,2]
[405841053,1771353045357,-1000.0,0.00012721,2]
[405841054,1771353045366,-200.0,0.0001274,2]
[405841055,1771353045378,-500.0,0.0001274,2]
[405841056,1771353045387,-12649.0,0.00012855,2]
[405841057,1771353045397,-3162.0,0.00012855,2]
[405841058,1771353045406,-3815.0,0.00012857,2]
[405841059,1771353045416,-500.0,0.00012877,2]
[405841060,1771353045425,-119222.30808405,0.000129,2]
[405841061,1771353045434,-173.57638878,0.0001295,2]
[405841062,1771353045444,-160.0,0.0001295,2]
[405841063,1771353045455,-5623.26156693,0.00013,2]
[405841064,1771353045464,-5362.79805645,0.0001305,2]
[405841065,1771353045474,-4488.74151012,0.00013055,2]
[405841066,1771353045483,-404.497183,0.00013099,2]
[405841067,1771353045493,-500.0,0.00013151,2]
[405841068,1771353045502,-1600.0,0.00013243,2]
[405841069,1771353045511,-215.37,0.00013246,2]
[405841070,1771353045520,-298.71,0.00013263,2]
[405841071,1771353045530,-1500.0,0.00013268,2]
[405841072,1771353045539,-623.71743587,0.00013268,2]
[405841073,1771353045549,-744.95097778,0.00013268,2]
[405841074,1771353045558,-1500.0,0.00013268,2]
[405841075,1771353045567,-806.86059886,0.00013268,2]
[405841076,1771353045577,-592.40967882,0.00013268,2]
[405841077,1771353045586,-1500.0,0.00013268,2]
[405841078,1771353045596,-1500.0,0.00013268,2]
[405841079,1771353045604,-1500.0,0.00013268,2]
[405841080,1771353045614,-1500.0,0.00013268,2]
[405841081,1771353045624,-344.71223806,0.00013268,2]
[405841082,1771353045633,-1500.0,0.00013268,2]
[405841083,1771353045642,-1513.76878479,0.00013268,2]
[405841084,1771353045651,-200.0,0.00013288,2]
[405841085,1771353045660,-500.0,0.00013288,2]
[405841086,1771353045670,-500.0,0.00013425,2]
[405841087,1771353045680,-1000.0,0.000135,2]
[405841088,1771353045690,-151.0,0.00013697,2]
[405841089,1771353045700,-500.0,0.00013698,2]
[405841090,1771353045709,-500.0,0.00013698,2]
[405841091,1771353045719,-500.0,0.00013698,2]
[405841092,1771353045729,-500.0,0.00013698,2]
[405841093,1771353045738,-586.00467181,0.00013698,2]
[405841094,1771353045748,-500.0,0.00013698,2]
[405841095,1771353045757,-500.0,0.00013698,2]
[405841096,1771353045767,-500.0,0.00013698,2]
[405841097,1771353045776,-500.0,0.00013698,2]
[405841098,1771353045786,-500.0,0.00013698,2]
[405841099,1771353045795,-321.35543779,0.00013698,2]
[405841100,1771353045805,-500.0,0.00013698,2]
[405841101,1771353045814,-500.0,0.00013698,2]
[405841102,1771353045824,-500.0,0.00013698,2]
[405841103,1771353045833,-500.0,0.00013698,2]
[405841104,1771353045842,-463.4906551,0.00013698,2]
[405841105,1771353045852,-500.0,0.00013698,2]
[405841106,1771353045862,-500.0,0.00013698,2]
[405841107,1771353045872,-500.0,0.00013698,2]
[405841108,1771353045882,-500.0,0.00013698,2]
[405841109,1771353045891,-500.0,0.00013698,2]
[405841110,1771353045901,-500.0,0.00013698,2]
[405841111,1771353045910,-500.0,0.00013698,2]
[405841112,1771353045919,-500.0,0.00013698,2]
[405841113,1771353045929,-500.0,0.00013698,2]
[405841114,1771353045938,-391.46615766,0.00013698,2]
[405841115,1771353045948,-2052.7,0.00013698,2]
[405841116,1771353045957,-2052.7,0.00013698,2]
[405841118,1771353045966,-2052.7,0.00013698,2]
[405841120,1771353045976,-2052.7,0.00013698,2]
[405841122,1771353045986,-2052.7,0.00013698,2]
[405841124,1771353045996,-2052.7,0.00013698,2]
[405841126,1771353046006,-2052.7,0.00013698,2]
[405841127,1771353046015,-2052.7,0.00013698,2]
[405841128,1771353046026,-2052.7,0.00013698,2]
[405841129,1771353046037,-2052.7,0.00013698,2]
[405841130,1771353046047,-2052.7,0.00013698,2]
[405841131,1771353046058,-2052.7,0.00013698,2]
[405841132,1771353046068,-2052.7,0.00013698,2]
[405841135,1771353046081,-2052.7,0.00013698,2]
[405841137,1771353046090,-2052.7,0.00013698,2]
[405841139,1771353046099,-2052.7,0.00013698,2]
[405841140,1771353046108,-2052.7,0.00013698,2]
[405841141,1771353046117,-2052.7,0.00013698,2]
[405841142,1771353046127,-2052.7,0.00013698,2]
[405841143,1771353046137,-2052.7,0.00013698,2]
[405841144,1771353046147,-2052.7,0.00013698,2]
[405841145,1771353046157,-2052.7,0.00013698,2]
[405841146,1771353046167,-2052.7,0.00013698,2]
[405841147,1771353046177,-2052.77678348,0.00013698,2]
[405841148,1771353046188,-500.0,0.00013698,2]
[405841149,1771353046198,-500.0,0.00013698,2]
[405841150,1771353046209,-509.4313423,0.00013698,2]
[405841151,1771353046219,-1013.23,0.00013698,2]
[405841152,1771353046228,-1013.23,0.00013698,2]
[405841153,1771353046237,-1013.23,0.00013698,2]
[405841154,1771353046247,-1013.23,0.00013698,2]
[405841155,1771353046257,-1013.23,0.00013698,2]
[405841156,1771353046266,-1013.23,0.00013698,2]
[405841157,1771353046276,-1013.23,0.00013698,2]
[405841158,1771353046286,-1013.23,0.00013698,2]
[405841159,1771353046295,-1013.23,0.00013698,2]
[405841160,1771353046305,-1013.23,0.00013698,2]
[405841161,1771353046314,-1013.23,0.00013698,2]
[405841162,1771353046325,-1013.23,0.00013698,2]
[405841163,1771353046334,-1013.23,0.00013698,2]
[405841164,1771353046344,-1013.23,0.00013698,2]
[405841165,1771353046353,-1013.23,0.00013698,2]
[405841166,1771353046362,-1013.23,0.00013698,2]
[405841167,1771353046372,-1013.23,0.00013698,2]
[405841168,1771353046386,-1013.23,0.00013698,2]
[405841169,1771353046396,-500.0,0.00013698,2]
[405841170,1771353046405,-500.0,0.00013698,2]
[405841171,1771353046415,-500.0,0.00013698,2]
[405841172,1771353046424,-500.0,0.00013698,2]
[405841173,1771353046434,-536.56841648,0.00013698,2]
[405841174,1771353046445,-500.0,0.00013698,2]
[405841175,1771353046455,-500.0,0.00013698,2]
[405841176,1771353046465,-500.0,0.00013698,2]
[405841177,1771353046475,-500.0,0.00013698,2]
[405841178,1771353046485,-500.0,0.00013698,2]
[405841179,1771353046494,-500.0,0.00013698,2]
[405841180,1771353046504,-500.0,0.00013698,2]
[405841181,1771353046514,-500.0,0.00013698,2]
[405841182,1771353046523,-500.0,0.00013698,2]
[405841183,1771353046533,-500.0,0.00013698,2]
[405841184,1771353046543,-500.0,0.00013698,2]
[405841185,1771353046553,-500.0,0.00013698,2]
[405841186,1771353046562,-500.0,0.00013698,2]
[405841187,1771353046574,-500.0,0.00013698,2]
[405841188,1771353046584,-500.0,0.00013698,2]
[405841189,1771353046593,-500.0,0.00013698,2]
[405841190,1771353046603,-500.0,0.00013698,2]
[405841191,1771353046612,-500.0,0.00013698,2]
[405841192,1771353046621,-500.0,0.00013698,2]
[405841193,1771353046630,-546.97,0.00013698,2]
[405841194,1771353046640,-546.97,0.00013698,2]
[405841195,1771353046649,-546.97,0.00013698,2]
[405841196,1771353046658,-546.97,0.00013698,2]
[405841197,1771353046668,-546.97,0.00013698,2]
[405841198,1771353046678,-546.97,0.00013698,2]
[405841199,1771353046688,-546.97,0.00013698,2]
[405841200,1771353046697,-546.97,0.00013698,2]
[405841201,1771353046707,-546.97,0.00013698,2]
[405841202,1771353046716,-546.97,0.00013698,2]
[405841203,1771353046726,-546.97,0.00013698,2]
[405841204,1771353046736,-546.97,0.00013698,2]
[405841205,1771353046746,-546.97,0.00013698,2]
[405841206,1771353046755,-546.97,0.00013698,2]
[405841207,1771353046765,-546.97,0.00013698,2]
[405841208,1771353046775,-546.97,0.00013698,2]
[405841209,1771353046784,-546.97,0.00013698,2]
[405841210,1771353046794,-546.97,0.00013698,2]
[405841211,1771353046803,-1479.1,0.00013698,2]
[405841212,1771353046815,-1479.1,0.00013698,2]
[405841213,1771353046826,-1479.1,0.00013698,2]
[405841214,1771353046836,-1479.1,0.00013698,2]
[405841215,1771353046845,-1479.1,0.00013698,2]
[405841216,1771353046855,-1479.1,0.00013698,2]
[405841217,1771353046865,-1479.1,0.00013698,2]
[405841218,1771353046874,-1479.1,0.00013698,2]
[405841219,1771353046884,-1479.1,0.00013698,2]
[405841220,1771353046894,-1479.1,0.00013698,2]
[405841221,1771353046903,-1479.1,0.00013698,2]
[405841222,1771353046913,-1479.1,0.00013698,2]
[405841223,1771353046922,-1479.1,0.00013698,2]
[405841224,1771353047170,-1479.1,0.00013698,2]
[405841225,1771353047180,-1479.1,0.00013698,2]
[405841226,1771353047189,-1479.1,0.00013698,2]
[405841227,1771353047199,-1479.1,0.00013698,2]
[405841228,1771353047208,-1479.1,0.00013698,2]
[405841229,1771353047217,-500.0,0.00013698,2]
[405841230,1771353047226,-500.0,0.00013698,2]
[405841231,1771353047236,-500.0,0.00013698,2]
[405841232,1771353047245,-500.0,0.00013698,2]
[405841233,1771353047254,-500.0,0.00013698,2]
[405841234,1771353047263,-500.0,0.00013698,2]
[405841235,1771353047272,-500.0,0.00013698,2]
[405841236,1771353047281,-500.0,0.00013698,2]
[405841237,1771353047291,-500.0,0.00013698,2]
[405841238,1771353047301,-500.0,0.00013698,2]
[405841239,1771353047311,-500.0,0.00013698,2]
[405841240,1771353047322,-500.0,0.00013698,2]
[405841241,1771353047335,-200.92210999,0.00013698,2]
[405841242,1771353047345,-500.0,0.00013698,2]
[405841243,1771353047355,-500.0,0.00013698,2]
[405841244,1771353047364,-571.27519115,0.00013698,2]
[405841245,1771353047374,-607.92,0.00013698,2]
[405841246,1771353047387,-607.92,0.00013698,2]
[405841247,1771353047400,-607.92,0.00013698,2]
[405841248,1771353047410,-607.92,0.00013698,2]
[405841249,1771353047422,-607.92,0.00013698,2]
[405841250,1771353047432,-607.92,0.00013698,2]
[405841251,1771353047443,-607.92,0.00013698,2]
[405841252,1771353047452,-607.92,0.00013698,2]
[405841253,1771353047464,-607.92,0.00013698,2]
[405841254,1771353047474,-607.92,0.00013698,2]
[405841255,1771353047484,-607.92,0.00013698,2]
[405841256,1771353047493,-607.92,0.00013698,2]
[405841257,1771353047503,-607.92,0.00013698,2]
[405841258,1771353047512,-607.92,0.00013698,2]
[405841259,1771353047522,-607.92,0.00013698,2]
[405841260,1771353047532,-607.92,0.00013698,2]
[405841261,1771353047542,-607.92,0.00013698,2]
[405841262,1771353047551,-607.92,0.00013698,2]
[405841263,1771353047560,-607.92,0.00013698,2]
[405841264,1771353047569,-1546.47,0.00013698,2]
[405841265,1771353047581,-1546.47,0.00013698,2]
[405841266,1771353047591,-1546.47,0.00013698,2]
[405841267,1771353047600,-1546.47,0.00013698,2]
[405841268,1771353047609,-1546.47,0.00013698,2]
[405841269,1771353047619,-1546.47,0.00013698,2]
[405841270,1771353047628,-1546.47,0.00013698,2]
[405841271,1771353047637,-1546.47,0.00013698,2]
[405841272,1771353047647,-1546.47,0.00013698,2]
[405841273,1771353047656,-1546.47,0.00013698,2]
[405841274,1771353047665,-1546.47,0.00013698,2]
[405841275,1771353047674,-1546.47,0.00013698,2]
[405841276,1771353047683,-1546.47,0.00013698,2]
[405841277,1771353047693,-1546.47,0.00013698,2]
[405841278,1771353047702,-1546.47,0.00013698,2]
[405841279,1771353047711,-1546.47,0.00013698,2]
[405841280,1771353047721,-1546.47,0.00013698,2]
[405841281,1771353047730,-1546.47,0.00013698,2]
[405841282,1771353047739,-1139.08,0.00013698,2]
[405841283,1771353047748,-1139.08,0.00013698,2]
[405841284,1771353047757,-1139.08,0.00013698,2]
[405841285,1771353047766,-1139.08,0.00013698,2]
[405841286,1771353047776,-1139.08,0.00013698,2]
[405841287,1771353047785,-1139.08,0.00013698,2]
[405841288,1771353047795,-1139.08,0.00013698,2]
[405841289,1771353047804,-1139.08,0.00013698,2]
[405841290,1771353047814,-1139.08,0.00013698,2]
[405841291,1771353047824,-1139.08,0.00013698,2]
[405841292,1771353047834,-1139.08,0.00013698,2]
[405841293,1771353047844,-1139.08,0.00013698,2]
[405841294,1771353047853,-1139.08,0.00013698,2]
[405841295,1771353047862,-1139.08,0.00013698,2]
[405841296,1771353047871,-1139.08,0.00013698,2]
[405841297,1771353047881,-1139.08,0.00013698,2]
[405841298,1771353047891,-1139.08,0.00013698,2]
[405841299,1771353047900,-1139.08,0.00013698,2]
[405841300,1771353047909,-1139.08,0.00013698,2]
[405841301,1771353047918,-516.5,0.00013698,2]
[405841302,1771353047928,-516.5,0.00013698,2]
[405841303,1771353047937,-516.5,0.00013698,2]
[405841304,1771353047946,-516.5,0.00013698,2]
[405841305,1771353047955,-516.5,0.00013698,2]
[405841306,1771353047965,-516.5,0.00013698,2]
[405841307,1771353047974,-516.5,0.00013698,2]
[405841308,1771353047983,-516.5,0.00013698,2]
[405841309,1771353047993,-516.5,0.00013698,2]
[405841310,1771353048002,-516.5,0.00013698,2]
[405841311,1771353048011,-516.5,0.00013698,2]
[405841312,1771353048020,-516.5,0.00013698,2]
[405841313,1771353048030,-516.5,0.00013698,2]
[405841314,1771353048039,-516.5,0.00013698,2]
[405841315,1771353048048,-516.5,0.00013698,2]
[405841316,1771353048058,-516.5,0.00013698,2]
[405841317,1771353048067,-516.5,0.00013698,2]
[405841318,1771353048077,-516.5,0.00013698,2]
[405841319,1771353048087,-500.0,0.00013698,2]
[405841320,1771353048096,-500.0,0.00013698,2]
[405841321,1771353048106,-500.0,0.00013698,2]
[405841322,1771353048115,-500.0,0.00013698,2]
[405841323,1771353048125,-500.0,0.00013698,2]
[405841324,1771353048135,-494.24526323,0.00013698,2]
[405841325,1771353048144,-500.0,0.00013698,2]
[405841326,1771353048155,-500.0,0.00013698,2]
[405841327,1771353048164,-500.0,0.00013698,2]
[405841328,1771353048173,-191.17661539,0.00013698,2]
[405841329,1771353048183,-500.0,0.00013698,2]
[405841330,1771353048192,-500.0,0.00013698,2]
[405841331,1771353048202,-500.0,0.00013698,2]
[405841332,1771353048211,-500.0,0.00013698,2]
[405841333,1771353048220,-500.0,0.00013698,2]
[405841334,1771353048230,-500.0,0.00013698,2]
[405841335,1771353048239,-500.0,0.00013698,2]
[405841336,1771353048248,-500.0,0.00013698,2]
[405841337,1771353048257,-500.0,0.00013698,2]
[405841338,1771353048267,-500.0,0.00013698,2]
[405841339,1771353048276,-500.0,0.00013698,2]
[405841340,1771353048286,-307.56,0.00013698,2]
[405841341,1771353048295,-500.0,0.00013698,2]
[405841342,1771353048305,-500.0,0.00013698,2]
[405841343,1771353048314,-500.0,0.00013698,2]
[405841344,1771353048324,-505.58518338,0.00013698,2]
[405841345,1771353048335,-500.0,0.00013698,2]
[405841346,1771353048345,-500.0,0.00013698,2]
[405841347,1771353048355,-500.0,0.00013698,2]
[405841348,1771353048365,-500.0,0.00013698,2]
[405841349,1771353048375,-474.03942024,0.00013698,2]
[405841350,1771353048388,-500.0,0.00013698,2]
[405841351,1771353048399,-528.4390448,0.00013698,2]
[405841352,1771353048409,-200.0,0.00013699,2]
[405841353,1771353048418,-712.99,0.00013699,2]
[405841354,1771353048428,-500.0,0.00013699,2]
[405841355,1771353048438,-151.02878078,0.00013699,2]
[405841356,1771353048450,-325.36,0.000137,2]
[405841357,1771353048462,-325.36,0.000137,2]
[405841358,1771353048472,-325.36,0.000137,2]
[405841359,1771353048482,-325.36,0.000137,2]
[405841360,1771353048492,-325.36,0.000137,2]
[405841361,1771353048500,-503.8182606,0.00013816,2]
[405841362,1771353048511,-2000.0,0.00013816,2]
[405841363,1771353048522,-2000.0,0.00013816,2]
[405841364,1771353048532,-2000.0,0.00013816,2]
[405841365,1771353048543,-2000.0,0.00013816,2]
[405841366,1771353048554,-2000.0,0.00013816,2]
[405841367,1771353048563,-2000.0,0.00013816,2]
[405841368,1771353048574,-200.0,0.00013836,2]
[405841369,1771353048583,-500.0,0.00013873,2]
[405841370,1771353048592,-500.0,0.00013873,2]
[405841371,1771353048601,-500.0,0.00013873,2]
[405841372,1771353048611,-500.0,0.00013873,2]
[405841373,1771353048621,-500.0,0.00013873,2]
[405841374,1771353048631,-500.0,0.00013873,2]
[405841375,1771353048641,-500.0,0.00013873,2]
[405841376,1771353048651,-163.87964352,0.00013873,2]
[405841377,1771353048661,-500.0,0.00013873,2]
[405841378,1771353048670,-500.0,0.00013873,2]
[405841379,1771353048681,-500.0,0.00013873,2]
[405841380,1771353048690,-161.95965132,0.00013873,2]
[405841381,1771353048699,-500.0,0.00013873,2]
[405841382,1771353048710,-500.0,0.00013873,2]
[405841383,1771353048720,-500.29634492,0.00013873,2]
[405841384,1771353048729,-500.0,0.00013873,2]
[405841385,1771353048738,-500.0,0.00013873,2]
[405841386,1771353048747,-561.11210647,0.00013873,2]
[405841387,1771353048758,-500.0,0.00013873,2]
[405841388,1771353048767,-523.64780308,0.00013873,2]
[405841389,1771353048777,-500.0,0.00013873,2]
[405841390,1771353048787,-162.40112722,0.00013873,2]
[405841391,1771353048796,-500.0,0.00013873,2]
[405841392,1771353048806,-514.27467488,0.00013873,2]
[405841393,1771353048815,-161.02829907,0.00013873,2]
[405841394,1771353048825,-501.14207764,0.00013873,2]
[405841395,1771353048834,-285.23122629,0.00013873,2]
[405841396,1771353048843,-500.0,0.00013873,2]
[405841397,1771353048853,-500.0,0.00013873,2]
[405841398,1771353048862,-335.00019172,0.00013873,2]
[405841399,1771353048871,-500.0,0.00013873,2]
[405841400,1771353048880,-500.0,0.00013873,2]
[405841401,1771353048889,-500.0,0.00013873,2]
[405841402,1771353048898,-500.0,0.00013873,2]
[405841403,1771353048907,-501.23450591,0.00013873,2]
[405841404,1771353048917,-505.14943602,0.00013873,2]
[405841405,1771353048925,-500.0,0.00013873,2]
[405841406,1771353048934,-161.87499248,0.00013873,2]
[405841407,1771353048943,-500.0,0.00013873,2]
[405841408,1771353048952,-500.0,0.00013873,2]
[405841409,1771353048961,-525.66819458,0.00013873,2]
[405841410,1771353048970,-503.17452108,0.00013873,2]
[405841411,1771353048979,-500.0,0.00013873,2]
[405841412,1771353048988,-500.0,0.00013873,2]
[405841413,1771353048997,-500.0,0.00013873,2]
[405841414,1771353049007,-500.0,0.00013873,2]
[405841415,1771353049017,-160.29464371,0.00013873,2]
[405841416,1771353049027,-436.04334629,0.00013873,2]
[405841417,1771353049037,-500.0,0.00013873,2]
[405841418,1771353049050,-160.44342054,0.00013873,2]
[405841419,1771353049061,-500.93096914,0.00013873,2]
[405841420,1771353049071,-500.0,0.00013873,2]
[405841421,1771353049081,-500.0,0.00013873,2]
[405841422,1771353049090,-550.905089,0.00013873,2]
[405841423,1771353049100,-569.45122683,0.00013873,2]
[405841424,1771353049110,-501.43225284,0.00013873,2]
[405841425,1771353049120,-500.0,0.00013873,2]
[405841426,1771353049129,-500.0,0.00013873,2]
[405841427,1771353049138,-500.0,0.00013873,2]
[405841428,1771353049147,-559.34470409,0.00013873,2]
[405841429,1771353049157,-500.0,0.00013873,2]
[405841430,1771353049168,-500.0,0.00013873,2]
[405841431,1771353049177,-500.0,0.00013873,2]
[405841432,1771353049186,-19800.0,0.000139,5]
[405841433,1771353049195,-594.05284132,0.00013973,2]
[405841434,1771353049205,-1500.0,0.00014,2]
[405841435,1771353049215,-8903.0,0.00014141,2]
[405841436,1771353049225,-4427.0,0.00014141,2]
[405841437,1771353049234,-2500.0,0.00014364,2]
[405841438,1771353049246,-2238.87048767,0.00014364,2]
[405841439,1771353049255,-1464.93718194,0.00014364,2]
[405841440,1771353049264,-1506.4295813,0.00014364,2]
[405841441,1771353049274,-191.88472966,0.00014364,2]
[405841442,1771353049283,-2500.0,0.00014364,2]
[405841443,1771353049292,-200.0,0.00014384,2]
[405841444,1771353049301,-10349.13153648,0.0001439,2]
[405841445,1771353049310,-1000.0,0.00014421,2]
[405841446,1771353049319,-501.86536618,0.00014421,2]
[405841447,1771353049329,-1000.0,0.00014421,2]
[405841448,1771353049338,-1000.0,0.00014421,2]
[405841449,1771353049347,-1000.0,0.00014421,2]